fUST/lending_fUST_20260129
["ID","MTS","AMOUNT","RATE_DAILY","PERIOD"]
[403885669,1769628639848,-500.0,0.00028646,2]
[403885671,1769628639858,-500.0,0.00028646,2]
[403885673,1769628639867,-2312.83697232,0.00028646,2]
[403885675,1769628639877,-174.61919141,0.00028646,2]
[403885677,1769628639887,-151.0,0.00028646,2]
[403885679,1769628639898,-289.41339882,0.00028646,2]
[403885682,1769628639908,-478.75725327,0.00028646,2]
[403885685,1769628639917,-174.61919141,0.00028646,2]
[403885688,1769628639927,-1957.856,0.00028646,2]
[403885689,1769628639937,-181.08010149,0.00028646,2]
[403885690,1769628639946,-187.78006525,0.00028646,2]
[403885692,1769628639956,-194.72792766,0.00028646,2]
[403885693,1769628639965,-201.93286099,0.00028646,2]
[403885694,1769628639975,-250.0,0.00028646,2]
[403885695,1769628639986,-209.40437684,0.00028646,2]
[403885696,1769628639996,-217.15233878,0.00028646,2]
[403885697,1769628640004,-225.18697532,0.00028646,2]
[403885699,1769628640014,-233.51889341,0.00028646,2]
[403885700,1769628640024,-242.15909246,0.00028646,2]
[403885701,1769628640034,-251.11897888,0.00028646,2]
[403885702,1769628640044,-260.4103811,0.00028646,2]
[403885703,1769628640053,-270.0455652,0.00028646,2]
[403885704,1769628640062,-280.03725112,0.00028646,2]
[403885705,1769628640073,-290.39862941,0.00028646,2]
[403885706,1769628640082,-301.1433787,0.00028646,2]
[403885707,1769628640225,-578.20924308,0.00028646,2]
[403885708,1769628640236,-2030.296672,0.00028701,2]
[403885709,1769628640245,-2105.41764886,0.00028756,2]
[403885710,1769628640255,-1000.0,0.000288,4]
[403885711,1769628640266,-2183.31810187,0.00028811,2]
[403885712,1769628640277,-2264.10087164,0.00028866,2]
[403885714,1769628640287,-2347.87260389,0.00028921,2]
[403885715,1769628640296,-5000.0,0.0002897,23]
[403885716,1769628640306,-2434.74389024,0.00028976,2]
[403885717,1769628640315,-1120.30664514,0.00029,2]
[403885718,1769628640325,-2524.82941417,0.00029031,2]
[403885719,1769628640334,-500.0,0.00029037,7]
[403885720,1769628640345,-450.0,0.00029041,5]
[403885721,1769628640357,-450.0,0.00029041,5]
[403885722,1769628640367,-2618.2481025,0.00029086,2]
[403885723,1769628640377,-400.0,0.00029123,3]
[403885724,1769628640386,-400.0,0.00029135,3]
[403885725,1769628640399,-2715.12328229,0.00029141,2]
[403885726,1769628640409,-745.9561734,0.00029143,2]
[403885727,1769628640419,-400.0,0.00029188,3]
[403885728,1769628640429,-156.70093233,0.00029194,2]
[403885729,1769628640438,-2398.4119403,0.00029194,2]
[403885730,1769628640448,-496.47127164,0.00029194,2]
[403885731,1769628640457,-599.60298507,0.00029194,2]
[403885732,1769628640466,-2460.09987822,0.00029196,2]
[403885733,1769628640476,-1000.0,0.00029292,30]
[403885734,1769628640486,-1000.0,0.00029292,30]
[403885735,1769628640495,-579.0,0.00029292,30]
[403885737,1769628640504,-1000.0,0.000293,4]
[403885739,1769628640513,-5520.1,0.000294,2]
[403885740,1769628640522,-730.0,0.00029508,3]
[403885741,1769628640532,-550.0,0.00029589,5]
[403885742,1769628640542,-236.57189686,0.00029589,5]
[403885743,1769628640551,-2487.15318209,0.00029742,2]
[403885744,1769628640560,-514.84070869,0.00029742,2]
[403885745,1769628640569,-621.78829552,0.00029742,2]
[403885746,1769628640578,-1000.0,0.000298,4]
[403885747,1769628640587,-153.0,0.0002989,30]
[403885748,1769628640596,-153.0,0.0002989,30]
[403885749,1769628640605,-1043.65606314,0.00029952,2]
[403885750,1769628640615,-1000.0,0.0003,14]
[403885751,1769628640624,-190.0,0.0003,14]
[403885752,1769628640633,-181.08010149,0.00030015,2]
[403885753,1769628640643,-563657.76,0.00030065,7]
[403885754,1769628640654,-73017.81,0.00030065,7]
[403885755,1769628640663,-161.0,0.00030106,3]
[403885756,1769628640673,-175.20269643,0.00030137,2]
[403885757,1769628640682,-650.0,0.00030137,5]
[403885758,1769628640692,-293.17,0.000302,7]
[403885759,1769628640701,-153.0,0.00030209,30]
[403885760,1769628640711,-153.0,0.00030209,30]
[403885761,1769628640720,-185.4228781,0.00030209,30]
[403885762,1769628640730,-153.0,0.00030209,30]
[403885763,1769628640739,-185.4228781,0.00030209,30]
[403885764,1769628640748,-153.0,0.00030209,30]
[403885765,1769628640757,-185.4228781,0.00030209,30]
[403885766,1769628640766,-185.4228781,0.00030209,30]
[403885767,1769628640776,-153.0,0.00030209,30]
[403885768,1769628640785,-153.0,0.00030209,30]
[403885769,1769628640794,-153.0,0.00030209,30]
[403885770,1769628640804,-2579.17784983,0.0003029,2]
[403885771,1769628640813,-533.88981491,0.0003029,2]
[403885772,1769628640822,-393.96445136,0.0003029,2]
[403885773,1769628640832,-1000.0,0.000303,14]
[403885774,1769628640842,-1000.0,0.000303,4]
[403885775,1769628640852,-400.0,0.00030398,3]
[403885776,1769628640862,-190.0,0.00030411,14]
[403885777,1769628640873,-161.0,0.0003043,3]
[403885778,1769628640883,-400.0,0.0003043,3]
[403885779,1769628640894,-800.0,0.0003043,2]
[403885780,1769628640906,-153.0,0.00030438,30]
[403885781,1769628640916,-153.0,0.00030438,30]
[403885782,1769628640928,-153.0,0.00030438,30]
[403885783,1769628640937,-153.0,0.00030438,30]
[403885784,1769628640947,-153.0,0.00030438,30]
[403885785,1769628640956,-153.0,0.00030438,30]
[403885786,1769628640965,-153.0,0.00030438,30]
[403885787,1769628640974,-153.0,0.00030438,30]
[403885788,1769628640983,-400.0,0.0003044,3]
[403885789,1769628640992,-160.5,0.000305,7]
[403885790,1769628641001,-41199.39838599,0.000305,31]
[403885791,1769628641011,-1369.0,0.00030596,2]
[403885792,1769628641019,-630.0,0.00030596,2]
[403885793,1769628641029,-716.0,0.00030596,2]
[403885794,1769628641038,-180.381,0.00030596,2]
[403885795,1769628641048,-558.797,0.00030596,2]
[403885796,1769628641058,-418.0,0.00030596,2]
[403885797,1769628641067,-1000.0,0.00030599,14]
[403885798,1769628641077,-3275.43193501,0.000306,2]
[403885799,1769628641087,-7369.72185376,0.000306,2]
[403885800,1769628641097,-179.11361699,0.000306,2]
[403885801,1769628641106,-716.45446796,0.000306,2]
[403885802,1769628641115,-1612.02255291,0.000306,2]
[403885803,1769628641125,-2865.81787185,0.000306,2]
[403885804,1769628641135,-4477.84042476,0.000306,2]
[403885805,1769628641148,-6448.09021166,0.000306,2]
[403885806,1769628641158,-8776.56723253,0.000306,2]
[403885807,1769628641167,-11463.27148739,0.000306,2]
[403885808,1769628641177,-1274.28895085,0.00030605,7]
[403885809,1769628641186,-5092.05864759,0.00030605,7]
[403885810,1769628641196,-1078.96581388,0.00030605,7]
[403885811,1769628641205,-4311.54739228,0.00030605,7]
[403885812,1769628641215,-573.16357437,0.00030605,7]
[403885813,1769628641224,-2292.65429748,0.00030605,7]
[403885814,1769628641234,-5158.47216933,0.00030605,7]
[403885815,1769628641243,-9161.44657272,0.00030605,7]
[403885816,1769628641253,-818.85798375,0.00030662,2]
[403885817,1769628641262,-750.0,0.00030685,5]
[403885818,1769628641272,-178.5494496,0.00030699,14]
[403885819,1769628641281,-151.0,0.00030699,14]
[403885820,1769628641291,-5397.64923067,0.000307,2]
[403885821,1769628641301,-5397.64923064,0.000307,2]
[403885822,1769628641310,-5397.64923064,0.000307,2]
[403885823,1769628641320,-5397.64923064,0.000307,2]
[403885824,1769628641329,-250.0,0.000307,10]
[403885825,1769628641339,-152324.30574867,0.000307,6]
[403885826,1769628641353,-500.0,0.00030754,11]
[403885827,1769628641362,-500.0,0.00030754,11]
[403885828,1769628641372,-169.33681227,0.00030771,3]
[403885829,1769628641383,-3883.43021948,0.00030799,2]
[403885830,1769628641392,-1381.6,0.000308,14]
[403885831,1769628641404,-1000.0,0.000308,4]
[403885832,1769628641414,-250.0,0.000308,10]
[403885833,1769628641424,-779.0,0.000308,2]
[403885834,1769628641435,-153.0,0.00030822,30]
[403885835,1769628641444,-2674.60743027,0.00030838,2]
[403885836,1769628641462,-553.64373807,0.00030838,2]
[403885837,1769628641474,-6479.3649831,0.00030844,2]
[403885838,1769628641484,-1391.8249567,0.00030844,2]
[403885839,1769628641494,-885.0338558,0.00030844,2]
[403885840,1769628641504,-1849.8420712,0.00030844,2]
[403885841,1769628641515,-880.504,0.00030864,7]
[403885842,1769628641524,-1000.0,0.00030899,14]
[403885843,1769628641535,-250.0,0.000309,10]
[403885844,1769628641545,-1021.0,0.000309,7]
[403885845,1769628641554,-161.68161754,0.00030904,30]
[403885846,1769628641564,-168.0,0.00030933,2]
[403885847,1769628641574,-168.0,0.00030966,2]
[403885848,1769628641583,-276.43,0.00030972,90]
[403885849,1769628641593,-306.4644152,0.0003099,2]
[403885850,1769628641603,-534.36761402,0.00031,2]
[403885851,1769628641612,-350.0,0.00031,60]
[403885852,1769628641622,-584.62310671,0.00031,30]
[403885853,1769628641631,-160.0,0.00031,120]
[403885854,1769628641641,-1000.0,0.00031,120]
[403885855,1769628641653,-160.0,0.00031,7]
[403885856,1769628641663,-1041.66666667,0.00031,7]
[403885857,1769628641672,-250.0,0.00031,10]
[403885858,1769628641682,-185.4228781,0.00031031,30]
[403885859,1769628641692,-153.0,0.00031031,30]
[403885860,1769628641709,-153.0,0.00031031,30]
[403885861,1769628641724,-153.0,0.00031031,30]
[403885862,1769628641738,-237.5525769,0.00031031,30]
[403885863,1769628641752,-151.0,0.00031037,14]
[403885864,1769628641765,-168.0,0.00031084,2]
[403885865,1769628641778,-200.0,0.000311,120]
[403885866,1769628641789,-235.92013,0.000311,120]
[403885867,1769628641800,-250.0,0.000311,10]
[403885868,1769628641813,-12346.20687032,0.0003112,2]
[403885869,1769628641825,-329.0,0.00031141,2]
[403885870,1769628641837,-800.98572717,0.00031143,2]
[403885871,1769628641849,-161.68161754,0.00031151,30]
[403885872,1769628641861,-168.0,0.0003117,2]
[403885873,1769628641874,-1000.0,0.00031198,14]
[403885874,1769628641886,-250.0,0.000312,10]
[403885875,1769628641900,-850.0,0.00031233,5]
[403885876,1769628641911,-250.0,0.000313,10]
[403885877,1769628641924,-161.68161754,0.0003137,30]
[403885878,1769628641937,-151.0,0.00031375,14]
[403885879,1769628641952,-2773.56790519,0.00031386,2]
[403885880,1769628641966,-574.12855637,0.00031386,2]
[403885881,1769628641977,-293.17,0.000314,7]
[403885882,1769628641989,-369.535919,0.000314,10]
[403885883,1769628642000,-417.0,0.00031422,2]
[403885884,1769628642011,-206.36876951,0.00031439,10]
[403885885,1769628642029,-160.09522763,0.00031439,10]
[403885886,1769628642043,-2734083.97687105,0.0003144,30]
[403885887,1769628642237,-500.0,0.000133,2]
[403885888,1769628642249,-300.77927269,0.00013574,2]
[403885889,1769628642263,-199.22072731,0.00013574,2]
[403885890,1769628642279,-431.36548199,0.00013848,2]
[403885891,1769628642291,-1193.38,0.000154,2]
[403885892,1769628642304,-250.0,0.00028646,2]
[403885893,1769628642316,-288.84456872,0.00028646,2]
[403885894,1769628642332,-377.7,0.00028646,2]
[403885907,1769628643869,-962.1005026,0.000154,2]
[403885908,1769628643884,-231.2794974,0.000154,2]
[403885909,1769628643895,-1193.38,0.000154,2]
[403885910,1769628643907,-1193.38,0.000154,2]
[403885911,1769628643918,-1163.8405026,0.000154,2]
[403885912,1769628643933,-29.5394974,0.000154,2]
[403885913,1769628643944,-4130.68903637,0.00026128,2]
[403885914,1769628643958,-333.45543128,0.00028646,2]
[403885915,1769628643970,-250.0,0.00028646,2]
[403885916,1769628643981,-408.13029867,0.00028646,2]
[403885929,1769628646309,-1193.38,0.000154,2]
[403885931,1769628646319,-591.86970133,0.00028646,2]
[403885932,1769628646329,-185.4228781,0.00030209,30]
[403885933,1769628646340,-1789.91472079,0.0003144,30]
[403885934,1769628646356,-2358.27087256,0.0003144,30]
[403885935,1769628971506,276.44,0.00034909,120]
[403885937,1769629235314,200.0,0.000294,120]
[403885938,1769629484505,89553.75825917,0.0003,120]
[403885940,1769629828151,235.92659,0.000294,120]
[403885947,1769629832162,-446.965,0.00012023,2]
[403885948,1769629832173,-183.69825573,0.00012023,2]
[403885949,1769629832182,-112.67174427,0.00012084,2]
[403886075,1769629838382,-197.96039551,0.00012084,2]
[403886077,1769629838392,-591.0,0.00012144,2]
[403886079,1769629838401,-170.58,0.00012329,2]
[403886080,1769629838411,-852.95,0.00012329,2]
[403886082,1769629838421,-345.399,0.00012507,2]
[403886084,1769629838431,-3717.6201328,0.0001266,2]
[403886086,1769629838440,-393.5949575,0.00012661,2]
[403886087,1769629838450,-500.0,0.00012661,2]
[403886089,1769629838459,-500.0,0.00012661,2]
[403886091,1769629838469,-186.9857735,0.00012661,2]
[403886093,1769629838480,-500.0,0.00012661,2]
[403886095,1769629838489,-203.24553147,0.00012661,2]
[403886096,1769629838499,-500.0,0.00012661,2]
[403886098,1769629838508,-500.0,0.00012661,2]
[403886100,1769629838518,-500.0,0.00012661,2]
[403886102,1769629838527,-500.0,0.00012661,2]
[403886104,1769629838537,-500.0,0.00012661,2]
[403886105,1769629838546,-439.9663516,0.00012661,2]
[403886107,1769629838555,-500.0,0.00012661,2]
[403886109,1769629838565,-500.0,0.00012661,2]
[403886111,1769629838575,-201.05308485,0.00012661,2]
[403886113,1769629838584,-167.32277422,0.00012661,2]
[403886114,1769629838593,-377.02881103,0.00012661,2]
[403886116,1769629838602,-300.0,0.00012661,2]
[403886118,1769629838612,-1200.0,0.00012661,2]
[403886120,1769629838621,-1720000.0,0.00012662,2]
[403886122,1769629838631,-300.0,0.00013016,2]
[403886123,1769629838640,-300.0,0.00013016,2]
[403886125,1769629838650,-300.0,0.00013016,2]
[403886127,1769629838660,-300.0,0.00013016,2]
[403886129,1769629838670,-300.0,0.00013016,2]
[403886131,1769629838682,-300.0,0.00013016,2]
[403886133,1769629838691,-300.0,0.00013016,2]
[403886135,1769629838700,-300.0,0.00013016,2]
[403886136,1769629838711,-300.0,0.00013016,2]
[403886138,1769629838721,-300.0,0.00013016,2]
[403886140,1769629838731,-300.0,0.00013016,2]
[403886142,1769629838740,-300.0,0.00013016,2]
[403886143,1769629838751,-300.0,0.00013016,2]
[403886145,1769629838761,-300.0,0.00013016,2]
[403886147,1769629838770,-300.0,0.00013016,2]
[403886149,1769629838780,-600.0,0.00013016,2]
[403886151,1769629838790,-500.0,0.00013273,2]
[403886153,1769629838799,-500.0,0.00013273,2]
[403886154,1769629838809,-500.0,0.00013273,2]
[403886157,1769629838818,-500.0,0.00013273,2]
[403886159,1769629838838,-300.0,0.00013673,2]
[403886161,1769629838848,-411.308015,0.00013699,2]
[403886163,1769629838858,-1000.0,0.00013699,2]
[403886164,1769629838867,-500.0,0.00013699,2]
[403886166,1769629838878,-500.0,0.00013699,2]
[403886168,1769629838888,-500.0,0.00013699,2]
[403886170,1769629838898,-500.0,0.00013699,2]
[403886172,1769629838908,-351.35435037,0.00013699,2]
[403886173,1769629838918,-855.419529,0.00013821,2]
[403886175,1769629838928,-1000.0,0.00013821,2]
[403886177,1769629838937,-1000.0,0.00013821,2]
[403886179,1769629838947,-507.06964924,0.00013821,2]
[403886181,1769629838957,-420.0,0.0001389,2]
[403886183,1769629838967,-1680.0,0.00013927,2]
[403886184,1769629838976,-100000.0,0.00014006,2]
[403886186,1769629838986,-366.54592494,0.00014084,2]
[403886188,1769629838996,-693.63223956,0.00014221,2]
[403886190,1769629839005,-341.02216059,0.00014247,2]
[403886192,1769629839015,-1000.0,0.00014247,2]
[403886194,1769629839024,-1000.0,0.00014247,2]
[403886195,1769629839034,-722.3651231,0.00014247,2]
[403886197,1769629839044,-720.0,0.00014318,2]
[403886199,1769629839054,-1500.0,0.00014368,2]
[403886201,1769629839063,-1500.0,0.00014368,2]
[403886203,1769629839072,-500.0,0.00014795,2]
[403886205,1769629839082,-1500.0,0.00014795,2]
[403886206,1769629839091,-2000.0,0.00014916,2]
[403886208,1769629839101,-2000.0,0.00014916,2]
[403886210,1769629839110,-3717.62013273,0.00015129,2]
[403886212,1769629839120,-587.0,0.00015237,2]
[403886213,1769629839130,-2351.0,0.0001532,2]
[403886215,1769629839139,-2000.0,0.00015342,2]
[403886217,1769629839149,-574.12268118,0.00015464,2]
[403886219,1769629839159,-2500.0,0.00015464,2]
[403886221,1769629839168,-5038.08922706,0.0001564,2]
[403886223,1769629839178,-864.0,0.0001575,2]
[403886225,1769629839187,-2500.0,0.0001589,2]
[403886226,1769629839196,-3000.0,0.00016012,2]
[403886228,1769629839206,-250.0,0.00016046,2]
[403886229,1769629839214,-422.4597101,0.00016084,2]
[403886230,1769629839224,-500.0,0.00016438,2]
[403886231,1769629839233,-423.36819008,0.00016438,2]
[403886232,1769629839242,-150.42150351,0.00016438,2]
[403886233,1769629839251,-164.57351573,0.00016438,2]
[403886234,1769629839261,-3000.0,0.00016438,2]
[403886235,1769629839270,-200.0,0.00016473,2]
[403886236,1769629839280,-2000.0,0.0001656,2]
[403886237,1769629839289,-1800.35293772,0.00016587,2]
[403886238,1769629839298,-823.0,0.00016716,2]
[403886239,1769629839307,-791.0,0.00016852,2]
[403886240,1769629839316,-3500.0,0.00016986,2]
[403886241,1769629839325,-160.0,0.00017184,2]
[403886242,1769629839335,-160.0,0.00017184,2]
[403886243,1769629839343,-1041.66666667,0.00017184,2]
[403886244,1769629839352,-1000.0,0.00017324,2]
[403886245,1769629839362,-4000.0,0.00017534,2]
[403886246,1769629839371,-3717.62013273,0.00017599,2]
[403886247,1769629839380,-150.12313849,0.00017808,2]
[403886248,1769629839389,-281.81382901,0.00017842,2]
[403886249,1769629839398,-4500.0,0.00018082,2]
[403886250,1769629839407,-478.37349526,0.00018084,2]
[403886251,1769629839416,-1152.0,0.00018338,2]
[403886252,1769629839426,-4194.85911576,0.0001863,2]
[403886253,1769629839435,-303.10001603,0.000189,2]
[403886254,1769629839445,-1000.0,0.00019057,2]
[403886255,1769629839455,-244.0,0.00019057,2]
[403886256,1769629839464,-508.0614,0.00019178,2]
[403886257,1769629839473,-508.0614,0.00019178,2]
[403886258,1769629839483,-508.06,0.00019178,2]
[403886259,1769629839492,-508.0614,0.00019178,2]
[403886260,1769629839502,-508.0614,0.00019589,3]
[403886261,1769629839511,-508.0614,0.00019589,3]
[403886262,1769629839520,-508.0586,0.00019589,3]
[403886263,1769629839529,-1535.11,0.000197,2]
[403886264,1769629839538,-160.51,0.000197,2]
[403886265,1769629839547,-287.65253593,0.0002,3]
[403886266,1769629839556,-3717.62013273,0.00020068,2]
[403886267,1769629839565,-534.28728042,0.00020084,2]
[403886268,1769629839574,-1613.0,0.00020118,2]
[403886269,1769629839583,-172.01,0.000203,2]
[403886270,1769629839592,-508.0614,0.00020411,5]
[403886271,1769629839601,-287.0672,0.00020411,5]
[403886272,1769629839610,-411.308015,0.00020548,2]
[403886273,1769629839619,-1000.0,0.00020963,2]
[403886274,1769629839630,-492.0,0.00020963,2]
[403886275,1769629839639,-6133.44,0.00021,2]
[403886276,1769629839648,-1312.0,0.0002207,2]
[403886277,1769629839657,-590.20106558,0.00022084,2]
[403886278,1769629839666,-3717.62013273,0.00022537,2]
[403886279,1769629839677,-1000.0,0.00023059,10]
[403886280,1769629839687,-791.0,0.00023059,10]
[403886281,1769629839696,-157.72,0.000231,2]
[403886282,1769629839705,-325.74,0.000231,7]
[403886283,1769629839715,-646.11485074,0.00024084,2]
[403886284,1769629839724,-380.0,0.00024658,2]
[403886285,1769629839733,-610879.379074,0.000249,2]
[403886286,1769629839742,-3717.62013273,0.00025007,2]
[403886287,1769629839753,-1000.0,0.00025365,10]
[403886288,1769629839762,-1000.0,0.00025365,10]
[403886289,1769629839771,-160.0,0.00026027,19]
[403886290,1769629839780,-702.0286359,0.00026084,2]
[403886291,1769629839789,-184.95386914,0.00026587,5]
[403886292,1769629839798,-157.26127169,0.00026587,5]
[403886293,1769629839807,-167.0,0.00027,7]
[403886294,1769629839816,-184.95386914,0.0002736,5]
[403886295,1769629839825,-157.1173049,0.00027397,2]
[403886296,1769629839834,-3717.62013273,0.00027476,2]
[403886297,1769629839843,-160.51,0.000279,7]
[403886298,1769629839851,-1000.0,0.00027901,30]
[403886299,1769629839860,-1000.0,0.00027901,30]
[403886300,1769629839869,-579.0,0.00027901,30]
[403886301,1769629839878,-250.0,0.00027945,5]
[403886302,1769629839887,-250.0,0.00027945,5]
[403886303,1769629839896,-757.94242106,0.00028084,2]
[403886305,1769629839906,-184.95386914,0.00028206,5]
[403886306,1769629839915,-160.0,0.0002838,3]
[403886307,1769629839924,-1071.528267,0.000284,6]
[403886308,1769629839933,-350.0,0.00028493,5]
[403886309,1769629839942,-350.0,0.00028493,5]
[403886310,1769629839951,-4246.65524428,0.00028832,2]
[403886312,1769629839961,-1957.856,0.00028832,2]
[403886313,1769629839971,-2030.296672,0.00028887,2]
[403886314,1769629839980,-1000.0,0.000289,6]
[403886315,1769629839989,-500.0,0.00028934,7]
[403886316,1769629839998,-2105.41764886,0.00028942,2]
[403886317,1769629840008,-5000.0,0.00028981,23]
[403886318,1769629840017,-2183.31810187,0.00028997,2]
[403886319,1769629840027,-450.0,0.00029041,5]
[403886320,1769629840036,-450.0,0.00029041,5]
[403886321,1769629840045,-2264.10087164,0.00029052,2]
[403886322,1769629840054,-184.95386914,0.00029078,5]
[403886323,1769629840063,-400.0,0.000291,3]
[403886324,1769629840072,-2347.87260389,0.00029107,2]
[403886325,1769629840082,-2434.74389024,0.00029162,2]
[403886326,1769629840091,-2524.82941417,0.00029217,2]
[403886327,1769629840100,-2618.2481025,0.00029272,2]
[403886328,1769629840109,-2715.12328229,0.00029327,2]
[403886329,1769629840118,-276.12088692,0.00029373,2]
[403886330,1769629840128,-2460.09987822,0.00029382,2]
[403886331,1769629840137,-1000.0,0.000294,6]
[403886332,1769629840146,-400.0,0.00029413,3]
[403886333,1769629840158,-161.0,0.0002942,3]
[403886334,1769629840167,-400.0,0.00029438,3]
[403886335,1769629840176,-550.0,0.00029589,5]
[403886336,1769629840186,-236.57189686,0.00029589,5]
[403886337,1769629840195,-1535.11,0.000296,14]
[403886338,1769629840204,-730.0,0.0002988,3]
[403886339,1769629840214,-1000.0,0.000299,6]
[403886340,1769629840223,-3717.62013273,0.00029945,2]
[403886341,1769629840232,-1000.0,0.0003,14]
[403886342,1769629840241,-190.0,0.0003,14]
[403886343,1769629840250,-1000.0,0.0003,14]
[403886344,1769629840259,-178.5494496,0.0003,14]
[403886345,1769629840268,-151.0,0.0003,14]
[403886346,1769629840277,-168.0,0.00030047,2]
[403886347,1769629840286,-400.0,0.0003006,3]
[403886348,1769629840295,-813.85620622,0.00030084,2]
[403886349,1769629840304,-168.0,0.0003012,2]
[403886350,1769629840313,-175.20269643,0.00030137,2]
[403886351,1769629840322,-650.0,0.00030137,5]
[403886352,1769629840331,-276.13,0.00030137,2]
[403886353,1769629840340,-168.0,0.00030161,2]
[403886354,1769629840349,-157.72,0.000302,2]
[403886355,1769629840358,-6133.44,0.000302,2]
[403886356,1769629840367,-325.74,0.000302,7]
[403886357,1769629840376,-1000.0,0.00030289,14]
[403886358,1769629840385,-151.0,0.00030378,14]
[403886359,1769629840394,-621554.77,0.00030379,7]
[403886360,1769629840403,-73017.81,0.00030379,7]
[403886361,1769629840413,-1000.0,0.000304,6]
[403886362,1769629840422,-161.0,0.00030409,3]
[403886363,1769629840431,-190.0,0.00030411,14]
[403886364,1769629840440,-400.0,0.0003044,3]
[403886365,1769629840449,-1043.65606314,0.00030479,2]
[403886366,1769629840458,-41199.39838599,0.000305,30]
[403886367,1769629840466,-1000.0,0.00030578,14]
[403886368,1769629840475,-160.0,0.00030613,4]
[403886369,1769629840484,-1369.0,0.00030679,2]
[403886370,1769629840493,-2150.0,0.00030679,2]
[403886371,1769629840503,-630.0,0.00030679,2]
[403886372,1769629840511,-750.0,0.00030685,5]
[403886373,1769629840520,-1000.0,0.00030691,30]
[403886374,1769629840529,-1000.0,0.00030691,30]
[403886376,1769629840538,-1000.0,0.00030691,30]
[403886377,1769629840547,-526.43760465,0.000307,2]
[403886378,1769629840556,-2105.75041859,0.000307,2]
[403886380,1769629840566,-4737.93844184,0.000307,2]
[403886381,1769629840575,-8423.00167438,0.000307,2]
[403886382,1769629840584,-179.11361699,0.000307,2]
[403886383,1769629840593,-716.45446796,0.000307,2]
[403886385,1769629840603,-1612.02255291,0.000307,2]
[403886386,1769629840612,-2865.81787185,0.000307,2]
[403886388,1769629840621,-4477.84042476,0.000307,2]
[403886390,1769629840630,-6448.09021166,0.000307,2]
[403886392,1769629840639,-8776.56723253,0.000307,2]
[403886394,1769629840648,-11463.27148739,0.000307,2]
[403886396,1769629840657,-250.0,0.000307,10]
[403886397,1769629840667,-151.0,0.00030755,14]
[403886399,1769629840679,-4162453.9613194,0.00030784,30]
[403886402,1769629840694,-19269.844304,0.00030784,30]
[403886404,1769629840706,-11549.20616657,0.00030784,30]
[403886406,1769629840718,-268.61921822,0.00030784,30]
[403886409,1769629840729,-281.04,0.00030784,30]
[403886414,1769629840776,-1207.2537685,0.00030784,30]
[403886416,1769629840787,-743.36268876,0.00030784,30]
[403886419,1769629840798,-50601.9576073,0.00030784,30]
[403886421,1769629840810,-1061.69153269,0.00030784,30]
[403886423,1769629840820,-2993.5369746,0.00030784,30]
[403886692,1769629843635,-843.72021,0.00030784,30]
[403886695,1769629843646,-418.93857618,0.00030784,30]
[403886981,1769629846376,-12910.15621236,0.00030784,30]
[403886988,1769629846429,-113348.10096841,0.00030784,30]
[403886994,1769629846485,-2339.28678504,0.00030784,30]
[403886996,1769629846496,-705.0,0.00030784,30]
[403887741,1769629921946,345.80241221,0.00034984,120]
[403887742,1769629922290,345.80241221,0.00034984,120]
[403887743,1769629922633,345.80241221,0.00034984,120]
[403887744,1769629922992,345.80241221,0.00034984,120]
[403887745,1769629923349,345.80241221,0.00034984,120]
[403887746,1769629923730,345.80241221,0.00034984,120]
[403887747,1769629924107,345.80241221,0.00034984,120]
[403887748,1769630041894,172.9012061,0.00035038,120]